fUST/lending_fUST_20260411
["ID","MTS","AMOUNT","RATE_DAILY","PERIOD"]
[420268118,1775889042163,-500.0,0.00011429,2]
[420268119,1775889042175,-500.0,0.00011429,2]
[420268120,1775889042211,-250.00000005,0.00011429,2]
[420268121,1775889042235,-500.0,0.00011429,2]
[420268122,1775889042252,-500.0,0.00011429,2]
[420268123,1775889042268,-500.0,0.00011429,2]
[420268124,1775889042278,-500.0,0.00011429,2]
[420268125,1775889042300,-500.0,0.00011429,2]
[420268126,1775889042312,-500.0,0.00011429,2]
[420268127,1775889042332,-500.0,0.00011429,2]
[420268128,1775889042346,-500.0,0.00011429,2]
[420268129,1775889042363,-500.0,0.00011429,2]
[420268130,1775889042393,-500.0,0.00011429,2]
[420268131,1775889042426,-334.88967255,0.00011429,2]
[420268132,1775889042458,-500.0,0.00011429,2]
[420268133,1775889042499,-500.0,0.00011429,2]
[420268134,1775889042536,-500.0,0.00011429,2]
[420268135,1775889042546,-500.0,0.00011429,2]
[420268136,1775889042570,-500.0,0.00011429,2]
[420268137,1775889042581,-500.0,0.00011429,2]
[420268138,1775889042599,-500.0,0.00011429,2]
[420268139,1775889042618,-500.0,0.00011429,2]
[420268140,1775889042633,-152.529112,0.00011432,2]
[420268141,1775889042846,-49893.32448991,0.00011433,2]
[420268142,1775889042882,-2689.61377437,0.00011433,2]
[420268143,1775889042926,-1197.10362736,0.00011433,2]
[420268144,1775889042940,-32692.71902216,0.00011433,2]
[420268145,1775889042956,-623.8679506,0.00011433,2]
[420268146,1775889042978,-1200.36558608,0.00011433,2]
[420268147,1775889042991,-6718.501097,0.00011433,2]
[420268154,1775889043947,-10380.03185489,0.00011433,2]
[420268155,1775889043960,-400.0,0.00011433,2]
[420268156,1775889043972,-1771.49898391,0.00011433,2]
[420268157,1775889043989,-1040.29697163,0.00011433,2]
[420268158,1775889044004,-7854.30538363,0.00011433,2]
[420268159,1775889044019,-9742.05342553,0.00011433,2]
[420268160,1775889044159,-410.21281028,0.00011433,2]
[420268171,1775889046877,-76046.56773177,0.00011433,2]
[420268172,1775889047029,-3693.05569602,0.00011433,2]
[420268173,1775889047069,-2297.1751127,0.00011433,2]
[420268174,1775889047082,-5639.05055673,0.00011433,2]
[420268386,1775890231911,-5000.0,9.254e-05,2]
[420268388,1775890231921,-2910.62165585,9.347e-05,2]
[420268390,1775890231936,-707.06610124,9.347e-05,2]
[420268391,1775890231946,-1200.0,9.44e-05,2]
[420268393,1775890231960,-5000.0,9.441e-05,2]
[420268395,1775890231974,-554.0,9.536e-05,2]
[420268396,1775890231987,-300.0,9.536e-05,2]
[420268398,1775890231999,-300.0,9.536e-05,2]
[420268400,1775890232012,-300.0,9.536e-05,2]
[420268401,1775890232045,-300.0,9.536e-05,2]
[420268402,1775890232054,-1096.0,9.729e-05,2]
[420268404,1775890232100,-1680.0,0.00010384,2]
[420268406,1775890232143,-903.18675168,0.00010454,2]
[420268407,1775890232191,-3609.1342597,0.00010454,2]
[420268408,1775890232213,-307.38670459,0.00010454,2]
[420268409,1775890232242,-1228.31727154,0.00010454,2]
[420268410,1775890232329,-420.0,0.0001049,2]
[420268411,1775890232366,-420.0,0.0001049,2]
[420268412,1775890232376,-420.0,0.0001049,2]
[420268413,1775890232403,-350.23445896,0.0001079,2]
[420268414,1775890232413,-500.0,0.0001079,2]
[420268415,1775890232423,-282.12634415,0.00011027,2]
[420268416,1775890232453,-500.0,0.00011028,2]
[420268417,1775890232472,-500.0,0.00011028,2]
[420268418,1775890232491,-500.0,0.00011028,2]
[420268419,1775890232517,-500.0,0.00011028,2]
[420268420,1775890232547,-500.0,0.00011028,2]
[420268421,1775890232556,-500.0,0.00011028,2]
[420268422,1775890232569,-500.0,0.00011028,2]
[420268423,1775890232602,-500.0,0.00011028,2]
[420268424,1775890232616,-500.0,0.00011028,2]
[420268425,1775890232626,-187.18000715,0.00011028,2]
[420268426,1775890232644,-500.0,0.00011028,2]
[420268427,1775890232657,-350.0,0.00011028,2]
[420268428,1775890232667,-500.0,0.00011028,2]
[420268429,1775890232682,-500.0,0.00011028,2]
[420268430,1775890232695,-500.0,0.00011028,2]
[420268431,1775890232717,-500.0,0.00011028,2]
[420268432,1775890232729,-500.0,0.00011028,2]
[420268433,1775890232739,-500.0,0.00011028,2]
[420268434,1775890232755,-500.0,0.00011028,2]
[420268435,1775890232766,-500.0,0.00011028,2]
[420268436,1775890232786,-500.0,0.00011028,2]
[420268437,1775890232803,-500.0,0.00011028,2]
[420268438,1775890232816,-500.0,0.00011028,2]
[420268439,1775890232862,-500.0,0.00011028,2]
[420268440,1775890232877,-500.0,0.00011028,2]
[420268441,1775890232903,-500.0,0.00011028,2]
[420268442,1775890232916,-500.0,0.00011028,2]
[420268443,1775890232928,-500.0,0.00011028,2]
[420268444,1775890232985,-500.0,0.00011028,2]
[420268445,1775890233001,-500.0,0.00011028,2]
[420268446,1775890233043,-500.0,0.00011028,2]
[420268447,1775890233110,-500.0,0.00011028,2]
[420268448,1775890233154,-500.0,0.00011028,2]
[420268449,1775890233204,-500.0,0.00011028,2]
[420268450,1775890233215,-500.0,0.00011028,2]
[420268451,1775890233258,-500.0,0.00011028,2]
[420268452,1775890233326,-500.0,0.00011028,2]
[420268453,1775890233386,-500.0,0.00011028,2]
[420268454,1775890233468,-500.0,0.00011028,2]
[420268455,1775890233573,-500.0,0.00011028,2]
[420268456,1775890233659,-500.0,0.00011028,2]
[420268457,1775890233669,-500.0,0.00011028,2]
[420268458,1775890233684,-500.0,0.00011028,2]
[420268459,1775890233705,-500.0,0.00011028,2]
[420268460,1775890233724,-550.14007052,0.00011028,2]
[420268461,1775890233735,-500.0,0.00011028,2]
[420268462,1775890233745,-500.0,0.00011028,2]
[420268463,1775890233755,-500.0,0.00011028,2]
[420268464,1775890233766,-500.0,0.00011028,2]
[420268465,1775890233776,-500.0,0.00011028,2]
[420268466,1775890233786,-197.78990003,0.00011028,2]
[420268467,1775890233797,-500.0,0.00011028,2]
[420268468,1775890233806,-500.0,0.00011028,2]
[420268469,1775890233816,-500.0,0.00011028,2]
[420268470,1775890233827,-500.0,0.00011028,2]
[420268471,1775890233836,-500.0,0.00011028,2]
[420268472,1775890233846,-500.0,0.00011028,2]
[420268473,1775890233856,-500.0,0.00011028,2]
[420268474,1775890233866,-500.0,0.00011028,2]
[420268475,1775890233876,-500.0,0.00011028,2]
[420268476,1775890233886,-162.20316683,0.00011028,2]
[420268477,1775890233896,-500.0,0.00011028,2]
[420268478,1775890233905,-500.0,0.00011028,2]
[420268479,1775890233915,-500.0,0.00011028,2]
[420268480,1775890233925,-500.0,0.00011028,2]
[420268481,1775890233937,-500.0,0.00011028,2]
[420268482,1775890233946,-500.0,0.00011028,2]
[420268483,1775890233956,-500.0,0.00011028,2]
[420268484,1775890233966,-500.0,0.00011028,2]
[420268485,1775890233978,-500.0,0.00011028,2]
[420268486,1775890233988,-500.0,0.00011028,2]
[420268487,1775890233998,-500.0,0.00011028,2]
[420268488,1775890234008,-500.0,0.00011028,2]
[420268489,1775890234022,-500.0,0.00011028,2]
[420268490,1775890234039,-500.0,0.00011028,2]
[420268491,1775890234049,-500.0,0.00011028,2]
[420268492,1775890234059,-500.0,0.00011028,2]
[420268493,1775890234072,-500.0,0.00011028,2]
[420268494,1775890234085,-500.0,0.00011028,2]
[420268495,1775890234094,-532.55315793,0.00011028,2]
[420268496,1775890234104,-532.55315793,0.00011028,2]
[420268497,1775890234118,-532.55315793,0.00011028,2]
[420268498,1775890234133,-532.55315793,0.00011028,2]
[420268499,1775890234142,-532.55315793,0.00011028,2]
[420268500,1775890234151,-532.55315793,0.00011028,2]
[420268501,1775890234171,-532.55315793,0.00011028,2]
[420268502,1775890234411,-532.55315793,0.00011028,2]
[420268503,1775890234430,-532.55315793,0.00011028,2]
[420268504,1775890234458,-532.55315793,0.00011028,2]
[420268505,1775890234468,-532.55315793,0.00011028,2]
[420268506,1775890234496,-532.55315793,0.00011028,2]
[420268507,1775890234507,-140.7310971,0.00011028,2]
[420268508,1775890234786,-391.82206083,0.00011028,2]
[420268509,1775890234797,-532.55315793,0.00011028,2]
[420268510,1775890234813,-290.63170009,0.00011028,2]
[420268511,1775890234832,-241.92145784,0.00011028,2]
[420268512,1775890234843,-532.55315793,0.00011028,2]
[420268513,1775890234866,-342.96057469,0.00011028,2]
[420268514,1775890235008,-500.0,0.00011027,2]
[420268515,1775890235017,-211.42571337,0.00011027,2]
[420268516,1775890235068,-288.57428663,0.00011027,2]
[420268517,1775890235103,-189.59258324,0.00011028,2]
[420268518,1775890235113,-532.55315793,0.00011028,2]
[420268519,1775890235124,-152.54233971,0.00011028,2]
[420268524,1775890238302,-3231.48469184,0.00010916,2]
[420268525,1775890238323,-1768.51530816,0.00010916,2]
[420268526,1775890238332,-500.0,0.00011027,2]
[420268527,1775890238341,-500.0,0.00011027,2]
[420268528,1775890238354,-500.0,0.00011027,2]
[420268529,1775890238368,-500.0,0.00011027,2]
[420268530,1775890238377,-500.0,0.00011027,2]
[420268531,1775890238386,-500.0,0.00011027,2]
[420268532,1775890238395,-500.0,0.00011027,2]
[420268533,1775890238410,-500.0,0.00011027,2]
[420268534,1775890238420,-500.0,0.00011027,2]
[420268535,1775890238428,-500.0,0.00011027,2]
[420268536,1775890238444,-500.0,0.00011027,2]
[420268537,1775890238459,-500.0,0.00011027,2]
[420268538,1775890238467,-500.0,0.00011027,2]
[420268539,1775890238477,-500.0,0.00011027,2]
[420268540,1775890238488,-171.00455671,0.00011027,2]
[420268541,1775890238503,-301.32938274,0.00011027,2]
[420268542,1775890238511,-2009.87676306,0.00011028,2]
[420268543,1775890238519,-2290.50161055,0.00011029,2]
[420268544,1775890238541,-990.72703622,0.00011029,2]
[420268551,1775890240815,-1917.85952668,0.00011029,2]
[420268552,1775890240850,-772.73702623,0.00011029,2]
[420268553,1775890240862,-2467.45075736,0.00011029,2]
[420268554,1775890240928,-5197.00092186,0.00011029,2]
[420268762,1775890246330,-6061.9078761,0.00011029,2]
[420268764,1775890246356,-3831.66086331,0.00011029,2]
[420268766,1775890246379,-5434.08732149,0.00011029,2]
[420268773,1775890246467,-56611.22275115,0.00011029,2]
[420269223,1775890770839,-151.0,0.00010593,30]
[420269224,1775890772022,-151.0,0.00010593,30]
[420269226,1775890772860,-151.0,0.00010593,30]
[420269227,1775890773942,-151.0,0.00010593,30]
[420269228,1775890774966,-151.0,0.00010593,30]
[420269229,1775890776210,-151.0,0.00010593,30]
[420269230,1775890779142,-151.0,0.00010593,30]
[420269231,1775890780031,-151.0,0.00010593,30]
[420269232,1775890780977,-151.0,0.00010593,30]
[420269233,1775890781993,-151.0,0.00010593,30]
[420269253,1775890824035,-604.0,0.00010382,2]
[420269254,1775890824063,-419.0,0.00010382,2]
[420269255,1775890824073,-185.0,0.00010487,2]
[420269256,1775890824093,-350.41370215,0.00010487,2]
[420269261,1775890861429,-151.0,0.00010592,30]
[420269262,1775890862953,-151.0,0.00010592,30]
[420269266,1775890893091,2105.04706782,7.6e-05,2]
[420269404,1775891097832,-151.0,0.00010593,30]
[420269405,1775891099254,-151.0,0.00010593,30]
[420269410,1775891134442,216.15850859,9.86e-05,30]
[420269411,1775891135468,324.23776289,9.999e-05,30]
[420269491,1775891269794,30654.74279653,9e-05,2]
[420269531,1775891432043,-708.7278,9.414e-05,2]
[420269533,1775891432054,-2447.95734508,9.509e-05,2]
[420269534,1775891432073,-2552.04265492,9.509e-05,2]
[420269535,1775891432082,-555.0,9.605e-05,2]
[420269536,1775891432094,-1200.0,9.997e-05,2]
[420269537,1775891432104,-54.43461774,9.998e-05,2]
[420269539,1775891432121,-245.56538226,9.998e-05,2]
[420269540,1775891432131,-300.0,9.998e-05,2]
[420269542,1775891432142,-300.0,9.998e-05,2]
[420269544,1775891432155,-990.7532748,0.00010593,30]
[420269570,1775891438580,-504.8875241,0.00010593,30]
[420269572,1775891438641,-820.96293367,0.00010624,2]
[420269573,1775891438736,-820.96293363,0.00010645,2]
[420269574,1775891438776,-2338.22791131,0.00010664,2]
[420269575,1775891438799,-820.96293363,0.00010666,2]
[420269576,1775891438833,-820.96293363,0.00010687,2]
[420269577,1775891438862,-453.00000001,0.00010699,30]
[420269578,1775891438878,-3307.6407989,0.000107,30]
[420269579,1775891438908,-209.62318534,0.00010708,2]
[420269580,1775891438924,-223.12100947,0.00010708,2]
[420269581,1775891438936,-820.96293363,0.00010708,2]
[420269582,1775891438967,-500.0,0.00010723,2]
[420269583,1775891438978,-500.0,0.00010723,2]
[420269584,1775891439017,-500.0,0.00010723,2]
[420269585,1775891439037,-500.0,0.00010723,2]
[420269586,1775891439055,-500.0,0.00010723,2]
[420269587,1775891439067,-500.0,0.00010723,2]
[420269588,1775891439080,-500.0,0.00010723,2]
[420269589,1775891439097,-500.0,0.00010723,2]
[420269590,1775891439107,-500.0,0.00010723,2]
[420269591,1775891439118,-500.0,0.00010723,2]
[420269592,1775891439143,-500.0,0.00010723,2]
[420269593,1775891439155,-500.0,0.00010723,2]
[420269594,1775891439171,-500.0,0.00010723,2]
[420269595,1775891439183,-500.0,0.00010723,2]
[420269596,1775891439196,-500.0,0.00010723,2]
[420269597,1775891439208,-500.0,0.00010723,2]
[420269598,1775891439220,-500.0,0.00010723,2]
[420269599,1775891439235,-500.0,0.00010723,2]
[420269600,1775891439246,-500.0,0.00010723,2]
[420269601,1775891439261,-500.0,0.00010723,2]
[420269602,1775891439272,-500.0,0.00010723,2]
[420269603,1775891439283,-500.0,0.00010723,2]
[420269604,1775891439295,-500.0,0.00010723,2]
[420269605,1775891439311,-522.81792097,0.00010723,2]
[420269606,1775891439323,-488.63550225,0.00010723,2]
[420269607,1775891439343,-500.0,0.00010723,2]
[420269608,1775891439354,-500.0,0.00010723,2]
[420269609,1775891439367,-500.0,0.00010723,2]
[420269610,1775891439387,-500.0,0.00010723,2]
[420269611,1775891439397,-500.0,0.00010723,2]
[420269612,1775891439410,-500.0,0.00010723,2]
[420269613,1775891439428,-500.0,0.00010723,2]
[420269614,1775891439437,-500.0,0.00010723,2]
[420269615,1775891439447,-500.0,0.00010723,2]
[420269616,1775891439457,-500.0,0.00010723,2]
[420269617,1775891439474,-500.0,0.00010723,2]
[420269618,1775891439485,-500.0,0.00010723,2]
[420269619,1775891439494,-500.0,0.00010723,2]
[420269620,1775891439506,-500.0,0.00010725,2]
[420269621,1775891439521,-500.0,0.00010725,2]
[420269622,1775891439534,-500.0,0.00010725,2]
[420269623,1775891439546,-500.0,0.00010725,2]
[420269624,1775891439559,-255.83638567,0.00010725,2]
[420269625,1775891439569,-500.0,0.00010725,2]
[420269626,1775891439585,-500.0,0.00010725,2]
[420269627,1775891439596,-500.0,0.00010725,2]
[420269628,1775891439606,-500.0,0.00010725,2]
[420269629,1775891439619,-252.18936082,0.00010725,2]
[420269630,1775891439630,-500.0,0.00010725,2]
[420269631,1775891439641,-200.0,0.00010725,2]
[420269632,1775891439651,-500.0,0.00010725,2]
[420269633,1775891439666,-500.0,0.00010725,2]
[420269634,1775891439676,-500.0,0.00010725,2]
[420269635,1775891439685,-500.0,0.00010725,2]
[420269636,1775891439695,-1254120.27165895,0.00010726,2]
[420269664,1775891446314,-5000.0,0.00010618,2]
[420269665,1775891446331,-1999.16763074,0.00010726,2]
[420269935,1775892362800,151.0,9.001e-05,2]
[420269937,1775892385913,209845.0,9.001e-05,2]
[420270030,1775892623901,-624.0,9.17e-05,2]
[420270036,1775892632232,-399.86526697,9.17e-05,2]
[420270037,1775892632353,-3702.33792449,9.17e-05,2]
[420270039,1775892632365,-273.79680854,9.17e-05,2]
[420270040,1775892632374,-2152.01149474,9.263e-05,2]
[420270041,1775892632392,-483.13863137,9.263e-05,2]
[420270042,1775892632402,-325.1916262,9.319e-05,2]
[420270043,1775892632411,-50.78964642,9.546e-05,2]
[420270085,1775892641322,-1149.21035358,9.546e-05,2]
[420270086,1775892641340,-300.0,9.547e-05,2]
[420270087,1775892641377,-300.0,9.547e-05,2]
[420270088,1775892641395,-286.8450024,9.99e-05,2]
[420270089,1775892641428,-455.5488178,9.99e-05,2]
[420270090,1775892641439,-324.5584443,0.00010141,2]
[420270091,1775892641462,-217.90670372,0.00010473,2]
[420270092,1775892641482,-500.0,0.00010473,2]
[420270093,1775892641511,-500.0,0.00010473,2]
[420270094,1775892641547,-500.0,0.00010473,2]
[420270095,1775892641611,-500.0,0.00010473,2]
[420270096,1775892641632,-500.0,0.00010473,2]
[420270097,1775892641649,-500.0,0.00010473,2]
[420270098,1775892641670,-511.62188196,0.00010473,2]
[420270099,1775892641686,-342.24361265,0.00010473,2]
[420270111,1775892646658,-157.75638735,0.00010473,2]
[420270112,1775892646668,-500.0,0.00010473,2]
[420270113,1775892646677,-255.215,0.00010499,2]
[420270114,1775892646687,-500.0,0.00010499,2]
[420270115,1775892646699,-500.0,0.00010499,2]
[420270116,1775892646711,-500.0,0.00010499,2]
[420270117,1775892646720,-500.0,0.00010499,2]
[420270118,1775892646730,-500.0,0.00010499,2]
[420270119,1775892646740,-396.34465024,0.00010499,2]
[420270120,1775892646935,-103.65534976,0.00010499,2]
[420270121,1775892646944,-500.0,0.00010499,2]
[420270122,1775892646954,-500.0,0.00010499,2]
[420270123,1775892646968,-500.0,0.00010499,2]
[420270124,1775892646978,-500.0,0.00010499,2]
[420270125,1775892646987,-500.0,0.00010499,2]
[420270126,1775892646997,-500.0,0.00010499,2]
[420270127,1775892647012,-500.0,0.00010499,2]
[420270128,1775892647022,-500.0,0.00010499,2]
[420270129,1775892647031,-500.0,0.00010499,2]
[420270130,1775892647040,-500.0,0.00010499,2]
[420270131,1775892647051,-500.0,0.00010499,2]
[420270132,1775892647061,-500.0,0.00010499,2]
[420270133,1775892647070,-500.0,0.00010499,2]
[420270134,1775892647080,-500.0,0.00010499,2]
[420270135,1775892647089,-500.0,0.00010499,2]
[420270136,1775892647102,-500.0,0.00010499,2]
[420270137,1775892647111,-500.0,0.00010499,2]
[420270138,1775892647121,-172.99668888,0.00010499,2]
[420270139,1775892647130,-500.0,0.00010499,2]
[420270140,1775892647139,-312.65965763,0.00010499,2]
[420270656,1775893832531,-5000.0,9.118e-05,2]
[420270658,1775893832541,-674.48963353,9.21e-05,2]
[420270660,1775893832575,-549.0,9.21e-05,2]
[420270661,1775893832584,-300.0,9.951e-05,2]
[420270662,1775893832615,-1200.0,9.952e-05,2]
[420270664,1775893832625,-300.0,9.952e-05,2]
[420270666,1775893832648,-679.03193788,9.953e-05,2]
[420270668,1775893832675,-2713.41162377,9.953e-05,2]
[420270669,1775893832691,-389.27060809,9.953e-05,2]
[420270670,1775893832702,-1557.08243236,9.953e-05,2]
[420270672,1775893832716,-3499.93203733,9.953e-05,2]
[420270673,1775893832733,-500.0,0.00010229,2]
[420270675,1775893832742,-500.0,0.00010229,2]
[420270677,1775893832752,-500.0,0.00010229,2]
[420270679,1775893832788,-500.0,0.00010229,2]
[420270680,1775893832797,-500.0,0.00010229,2]
[420270681,1775893832806,-500.0,0.00010229,2]
[420270682,1775893832825,-500.0,0.00010229,2]
[420270683,1775893832837,-446.979769,0.00010229,2]
[420270684,1775893832847,-500.0,0.00010229,2]
[420270685,1775893832859,-500.0,0.00010229,2]
[420270686,1775893832869,-24.83806888,0.00010229,2]
[420270707,1775893839164,-475.16193112,0.00010229,2]
[420270708,1775893839189,-500.0,0.00010229,2]
[420270709,1775893839208,-500.0,0.00010229,2]
[420270710,1775893839229,-276.57483713,0.00010229,2]
[420270736,1775893846825,-5000.0,0.00010127,2]
[420270737,1775893846846,-223.42516287,0.00010229,2]
[420270738,1775893846857,-500.0,0.00010229,2]
[420270739,1775893846878,-500.0,0.00010229,2]
[420270740,1775893846889,-500.0,0.00010229,2]
[420270741,1775893846896,-500.0,0.00010229,2]
[420270742,1775893846917,-500.0,0.00010229,2]
[420270743,1775893846932,-500.0,0.00010229,2]
[420270744,1775893846954,-240.01638644,0.00010229,2]
[420270748,1775893850191,-563.0,0.00010229,2]
[420270749,1775893850201,-259.98361356,0.00010229,2]
[420270750,1775893850225,-500.0,0.00010229,2]
[420270751,1775893850242,-491.32633693,0.00010229,2]
[420270800,1775894050950,5000.0,9.001e-05,2]
[420270801,1775894059510,1264.08767955,9.001e-05,2]
[420270808,1775894074439,5000.0,9.001e-05,2]
[420270816,1775894096291,5000.0,9.001e-05,2]
[420270829,1775894118270,5000.0,9.001e-05,2]
[420270830,1775894136843,260.94763207,9.071e-05,30]
[420270831,1775894137659,260.94763207,9.071e-05,30]
[420270832,1775894138432,260.94763207,9.164e-05,30]
[420270833,1775894139483,260.94763207,9.9e-05,30]
[420270834,1775894140705,260.94763207,9.952e-05,30]
[420270835,1775894140784,5000.0,9.001e-05,2]
[420270837,1775894162533,5000.0,9.001e-05,2]
[420270845,1775894185257,5000.0,9.001e-05,2]
[420270846,1775894207165,5000.0,9.001e-05,2]
[420270848,1775894229812,5000.0,9.001e-05,2]
[420270849,1775894251930,5000.0,9.001e-05,2]
[420270850,1775894273933,5000.0,9.001e-05,2]
[420270851,1775894295794,5000.0,9.001e-05,2]
[420270852,1775894317777,5000.0,9.001e-05,2]
[420270869,1775894339627,5000.0,9.001e-05,2]
[420270870,1775894362429,5000.0,9.001e-05,2]
[420270877,1775894384266,5000.0,9.001e-05,2]
[420270878,1775894406206,2412.62586033,9.001e-05,2]
[420270883,1775894424323,-2571.12918493,9.001e-05,2]
[420270885,1775894440933,1984.58447934,9.001e-05,30]
[420270886,1775894441654,1984.58447934,9.071e-05,30]
[420270887,1775894442332,1984.58447934,9.071e-05,30]
[420270888,1775894443010,1984.58447934,9.301e-05,30]
[420270889,1775894443648,41.08029843,9.453e-05,30]
[420270903,1775894542315,42925.0146494,8.735e-05,2]
[420270915,1775894597730,5000.0,9e-05,2]
[420270917,1775894614875,435.81398854,8.982e-05,2]
[420270923,1775894620062,1743.25595416,8.982e-05,2]
[420270924,1775894620486,5000.0,9e-05,2]
[420270925,1775894624695,3918.40357097,8.982e-05,2]
[420270934,1775894642776,5000.0,9e-05,2]
[420270940,1775894664893,5000.0,9e-05,2]
[420270943,1775894686693,5000.0,9e-05,2]
[420270948,1775894709196,5000.0,9e-05,2]
[420270949,1775894731121,5000.0,9e-05,2]
[420270954,1775894754112,5000.0,9e-05,2]
[420270956,1775894776101,5000.0,9e-05,2]
[420270957,1775894781270,9519.54019832,2.74e-05,2]
[420270960,1775894797869,5000.0,9e-05,2]
[420270962,1775894820405,5000.0,9e-05,2]
[420270969,1775894842859,630.67010739,9e-05,2]
[420270983,1775895027204,322.27543134,8.901e-05,2]
[420270997,1775895032448,-384.768375,9.001e-05,2]
[420271117,1775895038633,-161.231625,9.001e-05,2]
[420271119,1775895038648,-185.77342563,9.071e-05,2]
[420271243,1775895040793,-33.80671197,9.071e-05,2]
[420271245,1775895040958,-500.0,9.071e-05,2]
[420271247,1775895041011,-445.41370215,9.071e-05,2]
[420271252,1775895041309,-1200.0,9.451e-05,2]
[420271254,1775895041346,-300.0,9.452e-05,2]
[420271256,1775895041388,-300.0,9.452e-05,2]
[420271258,1775895041445,-300.0,9.452e-05,2]
[420271260,1775895041561,-300.0,9.452e-05,2]
[420271267,1775895041899,-1943.50418091,9.453e-05,30]
[420271269,1775895041943,-300.0,9.643e-05,2]
[420271271,1775895041953,-300.0,9.643e-05,2]
[420271273,1775895041974,-202.90071157,9.643e-05,2]
[420271337,1775895043141,-97.09928843,9.643e-05,2]
[420271339,1775895043155,-300.0,9.643e-05,2]
[420271341,1775895043166,-300.0,9.643e-05,2]
[420271343,1775895043195,-300.0,9.643e-05,2]
[420271345,1775895043206,-300.0,9.643e-05,2]
[420271347,1775895043218,-300.0,9.643e-05,2]
[420271349,1775895043234,-300.0,9.643e-05,2]
[420271351,1775895043244,-300.0,9.643e-05,2]
[420271353,1775895043253,-300.0,9.643e-05,2]
[420271355,1775895043286,-300.0,9.643e-05,2]
[420271357,1775895043295,-300.0,9.643e-05,2]
[420271359,1775895043307,-300.0,9.643e-05,2]
[420271361,1775895043323,-300.0,9.643e-05,2]
[420271363,1775895043350,-3231.04172269,9.643e-05,2]
[420271368,1775895043402,-2279.19654314,9.643e-05,2]
[420271370,1775895043415,-176.1871482,9.835e-05,2]
[420271452,1775895046014,-423.8128518,9.835e-05,2]
[420271453,1775895046027,-484.06751268,9.928e-05,2]
[420271454,1775895046050,-3781.66744579,9.928e-05,2]
[420271455,1775895046083,-12165.91081464,9.928e-05,2]
[420271456,1775895046098,-4132.80713712,9.928e-05,2]
[420271457,1775895046120,-569.37999998,9.928e-05,2]
[420271458,1775895046152,-157811.2749979,9.928e-05,2]
[420271742,1775895711385,164.415492,4.344e-05,2]
[420271743,1775895711578,164.415492,5.792e-05,2]
[420271744,1775895711787,164.415492,7.239e-05,2]
[420271745,1775895712014,164.415492,8.687e-05,2]
[420271752,1775895827491,4820.87637274,9e-05,2]
[420271753,1775895842858,517.45036582,9e-05,2]
[420271868,1775896224046,-548.0,9.161e-05,2]
[420271869,1775896224076,-186.41290451,9.437e-05,2]
[420271870,1775896224089,-113.58709549,9.437e-05,2]
[420271871,1775896224101,-434.41290451,9.437e-05,2]
[420271872,1775896224112,-300.0,9.437e-05,2]
[420271874,1775896238310,-465.58709549,9.437e-05,2]
[420271875,1775896238329,-300.0,9.438e-05,2]
[420271876,1775896238376,-300.0,9.438e-05,2]
[420271877,1775896238439,-159.27161477,9.438e-05,2]
[420271892,1775896243399,-140.72838523,9.438e-05,2]
[420271893,1775896243409,-300.0,9.438e-05,2]
[420271894,1775896243418,-300.0,9.438e-05,2]
[420271895,1775896243427,-300.0,9.438e-05,2]
[420271896,1775896243437,-300.0,9.438e-05,2]
[420271897,1775896243447,-300.0,9.438e-05,2]
[420271898,1775896243456,-300.0,9.438e-05,2]
[420271899,1775896243465,-300.0,9.438e-05,2]
[420271900,1775896243475,-300.0,9.438e-05,2]
[420271901,1775896243484,-300.0,9.438e-05,2]